[Event "Titled Tuesday Blitz April 25 Early 2023"]
[White "Skliarov, Viktor"]
[Black "Khamdamova, Afruza"]
[WhiteFideId "14106736"]
[BlackFideId "14210444"]
[WhiteElo "2317"]
[BlackElo "2210"]
[Result "0-1"]
[Round "11"]
[TimeControl "180+2"]
[Date "2023.04.25"]
[WhiteClock "0:00:03"]
[BlackClock "0:01:02"]

1. e4 {[%clk 0:03:00]}  e5 {[%clk 0:02:59]} 2. Nc3 {[%clk 0:02:59]}  Nf6 {[%clk 0:02:59]} 3. Bc4 {[%clk 0:02:59]}  Nc6 {[%clk 0:02:54]} 4. d3 {[%clk 0:02:59]}  Bc5 {[%clk 0:02:54]} 5. a3 {[%clk 0:02:59]}  a5 {[%clk 0:02:53]} 6. h3 {[%clk 0:02:59]}  O-O {[%clk 0:02:52]} 7. Nge2 {[%clk 0:02:59]}  h6 {[%clk 0:02:51]} 8. Ng3 {[%clk 0:02:59]}  d6 {[%clk 0:02:48]} 9. O-O {[%clk 0:02:59]}  Qe7 {[%clk 0:02:46]} 10. Nh5 {[%clk 0:02:47]}  Be6 {[%clk 0:02:43]} 11. Nxf6+ {[%clk 0:02:45]}  Qxf6 {[%clk 0:02:42]} 12. Nd5 {[%clk 0:02:46]}  Qd8 {[%clk 0:02:43]} 13. c3 {[%clk 0:02:42]}  Ne7 {[%clk 0:02:41]} 14. d4 {[%clk 0:02:28]}  Ba7 {[%clk 0:02:40]} 15. dxe5 {[%clk 0:02:00]}  dxe5 {[%clk 0:02:38]} 16. Qh5 {[%clk 0:01:42]}  Nxd5 {[%clk 0:02:33]} 17. exd5 {[%clk 0:01:42]}  Bxd5 {[%clk 0:02:33]} 18. Rd1 {[%clk 0:01:41]}  Bxf2+ {[%clk 0:02:22]} 19. Kxf2 {[%clk 0:01:13]}  Qf6+ {[%clk 0:02:21]} 20. Kg1 {[%clk 0:01:13]}  Bxc4 {[%clk 0:02:21]} 21. Be3 {[%clk 0:01:14]}  Rad8 {[%clk 0:02:17]} 22. Qg4 {[%clk 0:01:04]}  Be6 {[%clk 0:02:15]} 23. Qa4 {[%clk 0:01:04]}  b6 {[%clk 0:02:15]} 24. Qc6 {[%clk 0:01:04]}  Qe7 {[%clk 0:02:08]} 25. b4 {[%clk 0:00:54]}  axb4 {[%clk 0:02:05]} 26. axb4 {[%clk 0:00:55]}  Rxd1+ {[%clk 0:02:05]} 27. Rxd1 {[%clk 0:00:54]}  Rd8 {[%clk 0:02:05]} 28. Rxd8+ {[%clk 0:00:45]}  Qxd8 {[%clk 0:02:05]} 29. Qe4 {[%clk 0:00:45]}  Qd6 {[%clk 0:01:59]} 30. Bf2 {[%clk 0:00:41]}  f5 {[%clk 0:01:59]} 31. Qe2 {[%clk 0:00:34]}  Bd5 {[%clk 0:01:47]} 32. c4 {[%clk 0:00:25]}  Bb7 {[%clk 0:01:44]} 33. c5 {[%clk 0:00:24]}  bxc5 {[%clk 0:01:43]} 34. Bxc5 {[%clk 0:00:24]}  Qd5 {[%clk 0:01:43]} 35. Qf2 {[%clk 0:00:21]}  f4 {[%clk 0:01:42]} 36. Kh2 {[%clk 0:00:19]}  Kh7 {[%clk 0:01:39]} 37. Qc2+ {[%clk 0:00:19]}  e4 {[%clk 0:01:39]} 38. Qf2 {[%clk 0:00:19]}  e3 {[%clk 0:01:38]} 39. Qe2 {[%clk 0:00:19]}  Qe4 {[%clk 0:01:36]} 40. Kg1 {[%clk 0:00:12]}  Bd5 {[%clk 0:01:35]} 41. Kh2 {[%clk 0:00:12]}  Bc4 {[%clk 0:01:35]} 42. Qe1 {[%clk 0:00:11]}  e2 {[%clk 0:01:35]} 43. Bf2 {[%clk 0:00:11]}  Bd5 {[%clk 0:01:35]} 44. Qg1 {[%clk 0:00:10]}  Qxb4 {[%clk 0:01:32]} 45. Be1 {[%clk 0:00:10]}  Qe4 {[%clk 0:01:32]} 46. Qf2 {[%clk 0:00:11]}  c5 {[%clk 0:01:31]} 47. Bd2 {[%clk 0:00:11]}  c4 {[%clk 0:01:27]} 48. Be1 {[%clk 0:00:11]}  Kg6 {[%clk 0:01:12]} 49. Bd2 {[%clk 0:00:12]}  Kf5 {[%clk 0:01:13]} 50. Be1 {[%clk 0:00:12]}  f3 {[%clk 0:01:11]} 51. g4+ {[%clk 0:00:11]}  Kg6 {[%clk 0:01:11]} 52. Bd2 {[%clk 0:00:08]}  Qd3 {[%clk 0:01:10]} 53. Qb6+ {[%clk 0:00:05]}  Kh7 {[%clk 0:01:10]} 54. Be1 {[%clk 0:00:05]}  c3 {[%clk 0:01:10]} 55. Qd6 {[%clk 0:00:03]}  c2 {[%clk 0:01:09]} 56. Qc5 {[%clk 0:00:03]}  Qd1 {[%clk 0:01:08]} 57. Bc3 {[%clk 0:00:03]}  c1=Q {[%clk 0:01:03]} 58. Qe7 {[%clk 0:00:03]}  Qg1# {[%clk 0:01:02]} 0-1


[Site "https://www.chess.com"]

[Event "Titled Tuesday Blitz April 25 Early 2023"]
[White "Ibadov, Dashgyn"]
[Black "Shuvalov, Evgenij"]
[WhiteFideId "24107514"]
[BlackFideId "4187237"]
[WhiteElo "2208"]
[BlackElo "2080"]
[Result "1-0"]
[Round "11"]
[TimeControl "180+2"]
[Date "2023.04.25"]
[WhiteClock "0:02:19"]
[BlackClock "0:02:19"]

1. e4 {[%clk 0:03:00]}  e6 {[%clk 0:02:56]} 2. d4 {[%clk 0:03:00]}  d5 {[%clk 0:02:56]} 3. Nc3 {[%clk 0:03:00]}  Bb4 {[%clk 0:02:55]} 4. e5 {[%clk 0:03:01]}  c5 {[%clk 0:02:55]} 5. a3 {[%clk 0:03:01]}  Bxc3+ {[%clk 0:02:55]} 6. bxc3 {[%clk 0:03:02]}  Ne7 {[%clk 0:02:55]} 7. h4 {[%clk 0:03:00]}  Qc7 {[%clk 0:02:54]} 8. Rb1 {[%clk 0:02:57]}  b6 {[%clk 0:02:52]} 9. h5 {[%clk 0:02:56]}  h6 {[%clk 0:02:51]} 10. Qg4 {[%clk 0:02:50]}  Kf8 {[%clk 0:02:45]} 11. dxc5 {[%clk 0:02:42]}  Qxe5+ {[%clk 0:02:38]} 12. Be2 {[%clk 0:02:29]}  Ba6 {[%clk 0:02:37]} 13. Qd4 {[%clk 0:02:24]}  Nbc6 {[%clk 0:02:28]} 14. Qxe5 {[%clk 0:02:22]}  Nxe5 {[%clk 0:02:29]} 15. Bxa6 {[%clk 0:02:22]}  bxc5 {[%clk 0:02:24]} 16. Be3 {[%clk 0:02:22]}  Nd7 {[%clk 0:02:19]} 17. Rb7 {[%clk 0:02:19]} 1-0


[Site "https://www.chess.com"]

[Event "Titled Tuesday Blitz April 25 Early 2023"]
[White "Zavortink, Matt"]
[Black "Panesso Rivera, Henry"]
[WhiteFideId "2034263"]
[BlackFideId "4402707"]
[WhiteElo "2474"]
[BlackElo "2345"]
[Result "1-0"]
[Round "11"]
[TimeControl "180+2"]
[Date "2023.04.25"]
[WhiteClock "0:00:17"]
[BlackClock "0:01:42"]

1. c4 {[%clk 0:03:00]}  e5 {[%clk 0:02:59]} 2. Nc3 {[%clk 0:03:00]}  Nf6 {[%clk 0:02:58]} 3. Nf3 {[%clk 0:03:01]}  Nc6 {[%clk 0:02:58]} 4. e4 {[%clk 0:03:01]}  Bb4 {[%clk 0:02:58]} 5. d3 {[%clk 0:03:01]}  h6 {[%clk 0:02:58]} 6. a3 {[%clk 0:03:00]}  Bc5 {[%clk 0:02:57]} 7. Nxe5 {[%clk 0:02:58]}  Nxe5 {[%clk 0:02:55]} 8. d4 {[%clk 0:02:58]}  Bxd4 {[%clk 0:02:51]} 9. Qxd4 {[%clk 0:02:58]}  d6 {[%clk 0:02:52]} 10. Be2 {[%clk 0:02:55]}  O-O {[%clk 0:02:51]} 11. O-O {[%clk 0:02:54]}  Re8 {[%clk 0:02:49]} 12. f3 {[%clk 0:02:53]}  b6 {[%clk 0:02:44]} 13. b3 {[%clk 0:02:46]}  a5 {[%clk 0:02:43]} 14. Bb2 {[%clk 0:02:41]}  Bb7 {[%clk 0:02:41]} 15. Nd5 {[%clk 0:02:34]}  Nxd5 {[%clk 0:02:39]} 16. cxd5 {[%clk 0:02:33]}  f6 {[%clk 0:02:39]} 17. Rac1 {[%clk 0:02:27]}  Ba6 {[%clk 0:02:38]} 18. Bxa6 {[%clk 0:02:14]}  Rxa6 {[%clk 0:02:39]} 19. Rc2 {[%clk 0:02:04]}  Ra7 {[%clk 0:02:39]} 20. Rfc1 {[%clk 0:02:04]}  Re7 {[%clk 0:02:38]} 21. Qe3 {[%clk 0:01:59]}  Nf7 {[%clk 0:02:35]} 22. Rc4 {[%clk 0:01:55]}  Rd7 {[%clk 0:02:32]} 23. Bd4 {[%clk 0:01:52]}  Rb7 {[%clk 0:02:31]} 24. a4 {[%clk 0:01:44]}  Qe7 {[%clk 0:02:31]} 25. Qc3 {[%clk 0:01:42]}  Ne5 {[%clk 0:02:29]} 26. Bxe5 {[%clk 0:01:42]}  fxe5 {[%clk 0:02:28]} 27. Qe3 {[%clk 0:01:37]}  Kh8 {[%clk 0:02:28]} 28. Rc6 {[%clk 0:01:36]}  Qf7 {[%clk 0:02:27]} 29. R1c3 {[%clk 0:01:33]}  Ra7 {[%clk 0:02:26]} 30. Qc1 {[%clk 0:01:31]}  Rb7 {[%clk 0:02:26]} 31. Qe3 {[%clk 0:01:31]}  Kh7 {[%clk 0:02:26]} 32. Qc1 {[%clk 0:01:31]}  Qe7 {[%clk 0:02:26]} 33. Qc2 {[%clk 0:01:31]}  Qf7 {[%clk 0:02:25]} 34. Qc1 {[%clk 0:01:31]}  g5 {[%clk 0:02:23]} 35. Qe3 {[%clk 0:01:26]}  Kg6 {[%clk 0:02:18]} 36. Qe2 {[%clk 0:01:24]}  h5 {[%clk 0:02:18]} 37. Qa6 {[%clk 0:01:15]}  Rb8 {[%clk 0:02:09]} 38. Qa7 {[%clk 0:01:15]}  Rg8 {[%clk 0:01:57]} 39. Rxc7 {[%clk 0:01:14]}  Rxc7 {[%clk 0:01:55]} 40. Qxc7 {[%clk 0:01:14]}  Qxc7 {[%clk 0:01:52]} 41. Rxc7 {[%clk 0:01:14]}  g4 {[%clk 0:01:52]} 42. Rc6 {[%clk 0:01:12]}  gxf3 {[%clk 0:01:52]} 43. gxf3 {[%clk 0:01:12]}  Kg5 {[%clk 0:01:52]} 44. Rxd6 {[%clk 0:01:06]}  Kh4+ {[%clk 0:01:52]} 45. Kf2 {[%clk 0:00:56]}  Kh3 {[%clk 0:01:52]} 46. Rh6 {[%clk 0:00:54]}  h4 {[%clk 0:01:52]} 47. d6 {[%clk 0:00:54]}  Rg2+ {[%clk 0:01:52]} 48. Ke3 {[%clk 0:00:53]}  Rg1 {[%clk 0:01:52]} 49. f4 {[%clk 0:00:50]}  Re1+ {[%clk 0:01:50]} 50. Kf2 {[%clk 0:00:31]}  Rxe4 {[%clk 0:01:50]} 51. fxe5 {[%clk 0:00:31]}  Rxe5 {[%clk 0:01:49]} 52. d7 {[%clk 0:00:26]}  Rf5+ {[%clk 0:01:49]} 53. Ke3 {[%clk 0:00:25]}  Rd5 {[%clk 0:01:49]} 54. Rh7 {[%clk 0:00:24]}  Kg4 {[%clk 0:01:45]} 55. Ke4 {[%clk 0:00:24]}  Rd2 {[%clk 0:01:43]} 56. Rg7+ {[%clk 0:00:20]}  Kh5 {[%clk 0:01:43]} 57. Ke5 {[%clk 0:00:18]}  Kh6 {[%clk 0:01:43]} 58. Re7 {[%clk 0:00:16]}  Kg6 {[%clk 0:01:43]} 59. Re6+ {[%clk 0:00:16]}  Kf7 {[%clk 0:01:42]} 60. Rd6 {[%clk 0:00:17]}  Re2+ {[%clk 0:01:42]} 61. Kd5 {[%clk 0:00:17]} 1-0


[Site "https://www.chess.com"]

[Event "Titled Tuesday Blitz April 25 Early 2023"]
[White "Turzo, Attila"]
[Black "Vlassov, Nikolai"]
[WhiteFideId "704954"]
[BlackFideId "4103360"]
[WhiteElo "2472"]
[BlackElo "2324"]
[Result "1-0"]
[Round "11"]
[TimeControl "180+2"]
[Date "2023.04.25"]
[WhiteClock "0:00:34"]
[BlackClock "0:00:03"]

1. e4 {[%clk 0:03:00]}  c5 {[%clk 0:02:58]} 2. Nc3 {[%clk 0:03:00]}  g6 {[%clk 0:02:58]} 3. f4 {[%clk 0:02:55]}  Bg7 {[%clk 0:02:58]} 4. Nf3 {[%clk 0:02:55]}  Nc6 {[%clk 0:02:57]} 5. Bc4 {[%clk 0:02:51]}  a6 {[%clk 0:02:54]} 6. a4 {[%clk 0:02:49]}  Rb8 {[%clk 0:02:54]} 7. O-O {[%clk 0:02:49]}  Nd4 {[%clk 0:02:49]} 8. d3 {[%clk 0:02:35]}  b5 {[%clk 0:02:48]} 9. axb5 {[%clk 0:02:32]}  axb5 {[%clk 0:02:48]} 10. Ba2 {[%clk 0:02:32]}  b4 {[%clk 0:02:40]} 11. Ne2 {[%clk 0:02:27]}  Nxf3+ {[%clk 0:02:25]} 12. Rxf3 {[%clk 0:02:28]}  d6 {[%clk 0:02:19]} 13. f5 {[%clk 0:02:27]}  Nf6 {[%clk 0:02:18]} 14. fxg6 {[%clk 0:02:17]}  hxg6 {[%clk 0:02:18]} 15. Qe1 {[%clk 0:02:12]}  Bg4 {[%clk 0:01:55]} 16. Rf1 {[%clk 0:02:09]}  Qb6 {[%clk 0:01:42]} 17. Bc4 {[%clk 0:02:04]}  Bxe2 {[%clk 0:01:25]} 18. Qxe2 {[%clk 0:02:05]}  e6 {[%clk 0:01:23]} 19. Bf4 {[%clk 0:01:51]}  Nh5 {[%clk 0:01:09]} 20. Qf3 {[%clk 0:01:29]}  Bxb2 {[%clk 0:00:49]} 21. Ra6 {[%clk 0:01:12]}  Bd4+ {[%clk 0:00:12]} 22. Kh1 {[%clk 0:01:12]}  Qb7 {[%clk 0:00:11]} 23. Bxd6 {[%clk 0:01:09]}  Rd8 {[%clk 0:00:11]} 24. e5 {[%clk 0:00:59]}  Rh7 {[%clk 0:00:09]} 25. h3 {[%clk 0:00:50]}  Qxf3 {[%clk 0:00:09]} 26. Rxf3 {[%clk 0:00:49]}  f5 {[%clk 0:00:07]} 27. Bxe6 {[%clk 0:00:45]}  f4 {[%clk 0:00:06]} 28. g4 {[%clk 0:00:40]}  Ng7 {[%clk 0:00:03]} 29. Bc4 {[%clk 0:00:35]}  g5 {[%clk 0:00:03]} 30. Ra7 {[%clk 0:00:34]} 1-0


[Site "https://www.chess.com"]

[Event "Titled Tuesday Blitz April 25 Early 2023"]
[White "Brunner, Nicolas"]
[Black "Jovic, Stanoje"]
[WhiteFideId "620246"]
[BlackFideId "905020"]
[WhiteElo "2327"]
[BlackElo "2236"]
[Result "1-0"]
[Round "11"]
[TimeControl "180+2"]
[Date "2023.04.25"]
[WhiteClock "0:01:36"]
[BlackClock "0:00:09"]

1. Nf3 {[%clk 0:03:00]}  Nf6 {[%clk 0:02:58]} 2. g3 {[%clk 0:03:01]}  b5 {[%clk 0:02:57]} 3. Bg2 {[%clk 0:03:00]}  Bb7 {[%clk 0:02:58]} 4. O-O {[%clk 0:03:00]}  c5 {[%clk 0:02:58]} 5. d3 {[%clk 0:02:58]}  d5 {[%clk 0:02:57]} 6. c4 {[%clk 0:02:57]}  bxc4 {[%clk 0:02:55]} 7. dxc4 {[%clk 0:02:57]}  d4 {[%clk 0:02:54]} 8. e3 {[%clk 0:02:54]}  e5 {[%clk 0:02:32]} 9. Nxe5 {[%clk 0:02:52]}  Bxg2 {[%clk 0:02:32]} 10. Kxg2 {[%clk 0:02:52]}  Be7 {[%clk 0:02:10]} 11. Qf3 {[%clk 0:02:51]}  Nbd7 {[%clk 0:02:02]} 12. Nc6 {[%clk 0:02:50]}  Qc8 {[%clk 0:01:39]} 13. exd4 {[%clk 0:02:50]}  Bd8 {[%clk 0:01:15]} 14. Re1+ {[%clk 0:02:46]}  Kf8 {[%clk 0:01:15]} 15. d5 {[%clk 0:02:45]}  h6 {[%clk 0:01:00]} 16. Nc3 {[%clk 0:02:44]}  g5 {[%clk 0:00:58]} 17. h3 {[%clk 0:02:38]}  Kg7 {[%clk 0:00:57]} 18. b3 {[%clk 0:02:38]}  a5 {[%clk 0:00:56]} 19. Bb2 {[%clk 0:02:38]}  Nb8 {[%clk 0:00:41]} 20. Ne4 {[%clk 0:02:33]}  Nd7 {[%clk 0:00:28]} 21. Nd6 {[%clk 0:02:26]}  Qa6 {[%clk 0:00:15]} 22. g4 {[%clk 0:02:06]}  a4 {[%clk 0:00:15]} 23. Ne8+ {[%clk 0:02:02]}  Rxe8 {[%clk 0:00:14]} 24. Rxe8 {[%clk 0:02:02]}  Qb6 {[%clk 0:00:11]} 25. Rxd8 {[%clk 0:01:55]}  Rxd8 {[%clk 0:00:10]} 26. Nxd8 {[%clk 0:01:56]}  Qxd8 {[%clk 0:00:10]} 27. bxa4 {[%clk 0:01:55]}  Qb6 {[%clk 0:00:09]} 28. Bc3 {[%clk 0:01:53]}  Qa6 {[%clk 0:00:09]} 29. Re1 {[%clk 0:01:36]}  Qxc4 {[%clk 0:00:09]} 30. Re7 {[%clk 0:01:36]} 1-0


[Site "https://www.chess.com"]

[Event "Titled Tuesday Blitz April 25 Early 2023"]
[White "Pauly, Carlo"]
[Black "Balla, Tamas-Kristof"]
[WhiteFideId "24673269"]
[BlackFideId "1208497"]
[WhiteElo "2254"]
[BlackElo "2334"]
[Result "1-0"]
[Round "11"]
[TimeControl "180+2"]
[Date "2023.04.25"]
[WhiteClock "0:00:28"]
[BlackClock "0:00:13"]

1. d4 {[%clk 0:03:00]}  d5 {[%clk 0:03:00]} 2. c4 {[%clk 0:03:00]}  e6 {[%clk 0:03:00]} 3. Nc3 {[%clk 0:03:00]}  c5 {[%clk 0:03:00]} 4. cxd5 {[%clk 0:03:00]}  exd5 {[%clk 0:03:01]} 5. Nf3 {[%clk 0:02:57]}  Nc6 {[%clk 0:03:01]} 6. dxc5 {[%clk 0:02:57]}  d4 {[%clk 0:03:01]} 7. Na4 {[%clk 0:02:57]}  Bxc5 {[%clk 0:03:02]} 8. Nxc5 {[%clk 0:02:57]}  Qa5+ {[%clk 0:03:03]} 9. Bd2 {[%clk 0:02:57]}  Qxc5 {[%clk 0:03:03]} 10. Rc1 {[%clk 0:02:58]}  Qb6 {[%clk 0:03:04]} 11. e3 {[%clk 0:02:58]}  Nf6 {[%clk 0:03:04]} 12. Qa4 {[%clk 0:02:57]}  O-O {[%clk 0:02:54]} 13. Nxd4 {[%clk 0:02:54]}  Qxb2 {[%clk 0:02:39]} 14. Nxc6 {[%clk 0:02:50]}  bxc6 {[%clk 0:02:38]} 15. Qc2 {[%clk 0:02:46]}  Qe5 {[%clk 0:02:31]} 16. Bd3 {[%clk 0:02:42]}  Bb7 {[%clk 0:02:02]} 17. O-O {[%clk 0:02:21]}  h6 {[%clk 0:01:57]} 18. h3 {[%clk 0:02:19]}  Rad8 {[%clk 0:01:53]} 19. Bb4 {[%clk 0:02:09]}  Rfe8 {[%clk 0:01:48]} 20. Bc5 {[%clk 0:02:00]}  a5 {[%clk 0:01:30]} 21. Qc3 {[%clk 0:01:57]}  Qg5 {[%clk 0:01:22]} 22. Rfd1 {[%clk 0:01:44]}  Ne4 {[%clk 0:01:09]} 23. Bxe4 {[%clk 0:01:40]}  Rxe4 {[%clk 0:01:10]} 24. Qxa5 {[%clk 0:01:27]}  Rxd1+ {[%clk 0:01:09]} 25. Rxd1 {[%clk 0:01:27]}  Re5 {[%clk 0:01:02]} 26. Qd8+ {[%clk 0:01:15]}  Kh7 {[%clk 0:00:57]} 27. Qd3+ {[%clk 0:01:13]}  g6 {[%clk 0:00:46]} 28. f4 {[%clk 0:01:06]}  Ba6 {[%clk 0:00:29]} 29. Qxa6 {[%clk 0:00:53]}  Qh5 {[%clk 0:00:29]} 30. fxe5 {[%clk 0:00:49]}  Qxd1+ {[%clk 0:00:30]} 31. Kh2 {[%clk 0:00:50]}  Qd5 {[%clk 0:00:25]} 32. Bd6 {[%clk 0:00:44]}  h5 {[%clk 0:00:20]} 33. Qa7 {[%clk 0:00:36]}  h4 {[%clk 0:00:19]} 34. Qd4 {[%clk 0:00:35]}  Qxa2 {[%clk 0:00:19]} 35. Qxh4+ {[%clk 0:00:35]}  Kg7 {[%clk 0:00:19]} 36. Be7 {[%clk 0:00:32]}  g5 {[%clk 0:00:13]} 37. Qxg5+ {[%clk 0:00:31]}  Kh7 {[%clk 0:00:13]} 38. Bf6 {[%clk 0:00:28]} 1-0


[Site "https://www.chess.com"]

[Event "Titled Tuesday Blitz April 25 Early 2023"]
[White "Herman, Daniel"]
[Black "feuervogel1000000"]
[WhiteFideId "30935008"]
[WhiteElo "1897"]
[BlackElo "2442"]
[Result "0-1"]
[Round "11"]
[TimeControl "180+2"]
[Date "2023.04.25"]
[WhiteClock "0:00:01"]
[BlackClock "0:00:03"]

1. d4 {[%clk 0:03:00]}  Nf6 {[%clk 0:02:58]} 2. Bf4 {[%clk 0:03:01]}  e6 {[%clk 0:02:56]} 3. e3 {[%clk 0:03:00]}  b6 {[%clk 0:02:56]} 4. Qf3 {[%clk 0:02:59]}  c6 {[%clk 0:02:53]} 5. c4 {[%clk 0:02:51]}  d5 {[%clk 0:02:52]} 6. Nc3 {[%clk 0:02:50]}  Nbd7 {[%clk 0:02:51]} 7. cxd5 {[%clk 0:02:44]}  exd5 {[%clk 0:02:50]} 8. Bd3 {[%clk 0:02:44]}  Bb7 {[%clk 0:02:47]} 9. Nh3 {[%clk 0:02:39]}  Be7 {[%clk 0:02:46]} 10. O-O {[%clk 0:02:35]}  O-O {[%clk 0:02:45]} 11. Rac1 {[%clk 0:02:33]}  Rc8 {[%clk 0:02:40]} 12. Bg3 {[%clk 0:02:28]}  a6 {[%clk 0:02:29]} 13. Nf4 {[%clk 0:02:25]}  Re8 {[%clk 0:02:21]} 14. a3 {[%clk 0:02:19]}  Nf8 {[%clk 0:02:19]} 15. Nh5 {[%clk 0:02:06]}  Nxh5 {[%clk 0:02:19]} 16. Qxh5 {[%clk 0:02:07]}  Bf6 {[%clk 0:02:16]} 17. b4 {[%clk 0:02:04]}  g6 {[%clk 0:02:12]} 18. Qf3 {[%clk 0:01:56]}  h5 {[%clk 0:02:11]} 19. h3 {[%clk 0:01:54]}  Ne6 {[%clk 0:02:08]} 20. Na4 {[%clk 0:01:39]}  Ng5 {[%clk 0:01:59]} 21. Qf4 {[%clk 0:01:34]}  Be7 {[%clk 0:01:43]} 22. Rc2 {[%clk 0:01:22]}  Bf8 {[%clk 0:00:44]} 23. Rfc1 {[%clk 0:01:20]}  Bh6 {[%clk 0:00:43]} 24. Qd6 {[%clk 0:01:15]}  Qxd6 {[%clk 0:00:33]} 25. Bxd6 {[%clk 0:01:16]}  b5 {[%clk 0:00:26]} 26. Nc5 {[%clk 0:00:51]}  Ba8 {[%clk 0:00:22]} 27. Nxa6 {[%clk 0:00:50]}  Ne6 {[%clk 0:00:21]} 28. Be5 {[%clk 0:00:26]}  Bf8 {[%clk 0:00:15]} 29. Bxb5 {[%clk 0:00:25]}  Bb7 {[%clk 0:00:12]} 30. Bd3 {[%clk 0:00:21]}  Ra8 {[%clk 0:00:12]} 31. b5 {[%clk 0:00:07]}  cxb5 {[%clk 0:00:12]} 32. Bxb5 {[%clk 0:00:08]}  Bxa6 {[%clk 0:00:11]} 33. Bxe8 {[%clk 0:00:08]}  Rxe8 {[%clk 0:00:12]} 34. Rc6 {[%clk 0:00:08]}  Bc4 {[%clk 0:00:12]} 35. a4 {[%clk 0:00:07]}  Ra8 {[%clk 0:00:12]} 36. Ra1 {[%clk 0:00:06]}  Bb5 {[%clk 0:00:07]} 37. Rb6 {[%clk 0:00:04]}  Rxa4 {[%clk 0:00:06]} 38. Rc1 {[%clk 0:00:03]}  Bc4 {[%clk 0:00:05]} 39. Rb8 {[%clk 0:00:03]}  Kh7 {[%clk 0:00:03]} 40. Rcb1 {[%clk 0:00:02]}  g5 {[%clk 0:00:02]} 41. Rc8 {[%clk 0:00:01]}  Be7 {[%clk 0:00:02]} 42. Rbb8 {[%clk 0:00:01]}  Kg6 {[%clk 0:00:03]} 43. Rg8+ {[%clk 0:00:01]}  Kf5 {[%clk 0:00:03]} 0-1


[Site "https://www.chess.com"]

[Event "Titled Tuesday Blitz April 25 Early 2023"]
[White "Ronka, Erik"]
[Black "Gurevich, Dmitry"]
[WhiteFideId "505080"]
[BlackFideId "2000407"]
[WhiteElo "2264"]
[BlackElo "2506"]
[Result "0-1"]
[Round "11"]
[TimeControl "180+2"]
[Date "2023.04.25"]
[WhiteClock "0:00:10"]
[BlackClock "0:00:57"]

1. b4 {[%clk 0:03:00]}  d5 {[%clk 0:02:57]} 2. Bb2 {[%clk 0:03:00]}  Qd6 {[%clk 0:02:55]} 3. a3 {[%clk 0:02:54]}  a5 {[%clk 0:02:54]} 4. b5 {[%clk 0:02:48]}  Nf6 {[%clk 0:02:53]} 5. Nf3 {[%clk 0:02:46]}  g6 {[%clk 0:02:53]} 6. e3 {[%clk 0:02:36]}  Bg7 {[%clk 0:02:53]} 7. Be2 {[%clk 0:02:34]}  O-O {[%clk 0:02:52]} 8. O-O {[%clk 0:02:34]}  b6 {[%clk 0:02:50]} 9. a4 {[%clk 0:02:33]}  Bb7 {[%clk 0:02:50]} 10. d3 {[%clk 0:02:32]}  c5 {[%clk 0:02:46]} 11. Nbd2 {[%clk 0:02:26]}  Nbd7 {[%clk 0:02:44]} 12. c4 {[%clk 0:02:17]}  e5 {[%clk 0:02:40]} 13. cxd5 {[%clk 0:02:09]}  Nxd5 {[%clk 0:02:40]} 14. Nc4 {[%clk 0:02:07]}  Qc7 {[%clk 0:02:40]} 15. Qb3 {[%clk 0:02:01]}  Rfe8 {[%clk 0:02:33]} 16. Rfd1 {[%clk 0:01:58]}  Rad8 {[%clk 0:02:28]} 17. Rac1 {[%clk 0:01:58]}  Nb4 {[%clk 0:02:22]} 18. Ba3 {[%clk 0:01:40]}  h6 {[%clk 0:02:18]} 19. Ne1 {[%clk 0:01:21]}  Nf6 {[%clk 0:02:06]} 20. Bf3 {[%clk 0:01:14]}  Bxf3 {[%clk 0:02:00]} 21. Nxf3 {[%clk 0:01:15]}  e4 {[%clk 0:01:57]} 22. dxe4 {[%clk 0:01:15]}  Nxe4 {[%clk 0:01:54]} 23. h3 {[%clk 0:00:55]}  Nc3 {[%clk 0:01:43]} 24. Rxd8 {[%clk 0:00:44]}  Rxd8 {[%clk 0:01:40]} 25. Re1 {[%clk 0:00:37]}  Rd3 {[%clk 0:01:29]} 26. Qb2 {[%clk 0:00:20]}  Nxa4 {[%clk 0:01:21]} 27. Qc1 {[%clk 0:00:16]}  Rc3 {[%clk 0:01:16]} 28. Qd1 {[%clk 0:00:14]}  Nc2 {[%clk 0:01:10]} 29. Re2 {[%clk 0:00:10]}  Nxa3 {[%clk 0:01:05]} 30. Qxa4 {[%clk 0:00:10]}  Nxc4 {[%clk 0:00:57]} 0-1


[Site "https://www.chess.com"]

[Event "Titled Tuesday Blitz April 25 Early 2023"]
[White "Mazurkiewicz, Michal"]
[Black "Rodchenkov, Sergey D."]
[WhiteFideId "1124943"]
[BlackFideId "4168712"]
[WhiteElo "2054"]
[BlackElo "2277"]
[Result "0-1"]
[Round "11"]
[TimeControl "180+2"]
[Date "2023.04.25"]
[WhiteClock "0:00:04"]
[BlackClock "0:00:34"]

1. e4 {[%clk 0:03:00]}  c5 {[%clk 0:03:00]} 2. Nf3 {[%clk 0:03:00]}  d6 {[%clk 0:03:00]} 3. g3 {[%clk 0:03:00]}  Nf6 {[%clk 0:02:56]} 4. d3 {[%clk 0:03:00]}  g6 {[%clk 0:02:57]} 5. Bg2 {[%clk 0:03:01]}  Bg7 {[%clk 0:02:57]} 6. O-O {[%clk 0:03:01]}  O-O {[%clk 0:02:58]} 7. Re1 {[%clk 0:03:00]}  Nc6 {[%clk 0:02:58]} 8. e5 {[%clk 0:03:00]}  dxe5 {[%clk 0:02:57]} 9. Nxe5 {[%clk 0:03:01]}  Nxe5 {[%clk 0:02:57]} 10. Rxe5 {[%clk 0:03:02]}  Ng4 {[%clk 0:02:57]} 11. Re1 {[%clk 0:03:01]}  Bd4 {[%clk 0:02:41]} 12. Re2 {[%clk 0:02:55]}  Qd6 {[%clk 0:02:26]} 13. c3 {[%clk 0:02:49]}  Bg7 {[%clk 0:02:25]} 14. h3 {[%clk 0:02:49]}  Ne5 {[%clk 0:02:24]} 15. Bf4 {[%clk 0:01:55]}  Qxd3 {[%clk 0:02:21]} 16. Qxd3 {[%clk 0:01:48]}  Nxd3 {[%clk 0:02:22]} 17. Rxe7 {[%clk 0:01:49]}  Nxf4 {[%clk 0:02:14]} 18. gxf4 {[%clk 0:01:47]}  Rb8 {[%clk 0:02:12]} 19. Nd2 {[%clk 0:01:28]}  Bf5 {[%clk 0:02:03]} 20. Nc4 {[%clk 0:00:57]}  Bh6 {[%clk 0:01:52]} 21. Nd6 {[%clk 0:00:54]}  Be6 {[%clk 0:01:50]} 22. f5 {[%clk 0:00:52]}  gxf5 {[%clk 0:01:50]} 23. Nxb7 {[%clk 0:00:52]}  Bg5 {[%clk 0:01:40]} 24. Rc7 {[%clk 0:00:52]}  c4 {[%clk 0:01:38]} 25. Re1 {[%clk 0:00:43]}  a5 {[%clk 0:01:29]} 26. a4 {[%clk 0:00:37]}  Bf4 {[%clk 0:01:24]} 27. Rc5 {[%clk 0:00:35]}  Kg7 {[%clk 0:01:17]} 28. Rxa5 {[%clk 0:00:32]}  Kf6 {[%clk 0:01:17]} 29. Ra6 {[%clk 0:00:31]}  Rg8 {[%clk 0:01:15]} 30. Kf1 {[%clk 0:00:29]}  Rxg2 {[%clk 0:01:13]} 31. Kxg2 {[%clk 0:00:21]}  Rxb7 {[%clk 0:01:13]} 32. Re2 {[%clk 0:00:17]}  Kg7 {[%clk 0:01:07]} 33. a5 {[%clk 0:00:17]}  Rd7 {[%clk 0:00:59]} 34. Rb6 {[%clk 0:00:15]}  Bc7 {[%clk 0:00:59]} 35. Rb5 {[%clk 0:00:13]}  Bd8 {[%clk 0:00:52]} 36. f3 {[%clk 0:00:13]}  Ra7 {[%clk 0:00:52]} 37. Rb8 {[%clk 0:00:10]}  Bxa5 {[%clk 0:00:49]} 38. Re1 {[%clk 0:00:10]}  Bc7 {[%clk 0:00:48]} 39. Rb5 {[%clk 0:00:08]}  Kf6 {[%clk 0:00:45]} 40. h4 {[%clk 0:00:08]}  Bf4 {[%clk 0:00:44]} 41. Rb6 {[%clk 0:00:08]}  Ra8 {[%clk 0:00:44]} 42. Kf2 {[%clk 0:00:05]}  Bb8 {[%clk 0:00:35]} 43. Rd1 {[%clk 0:00:04]}  Ba7 {[%clk 0:00:34]} 0-1


[Site "https://www.chess.com"]